[Event "Late-Titled-Tuesday-Blitz-February-20-2024"]
[Site "Chess.com"]
[Date "2024.02.20"]
[Round "8"]
[White "NLLO777"]
[Black "vovachesss"]
[Result "0-1"]
[WhiteElo "2536"]
[BlackElo "2796"]
[TimeControl "180+1"]
[EndTime "15:27:29 PST"]
[Termination "vovachesss won by resignation"]

1. Nf3 {[%clk 0:03:00.9]} 1... d5 {[%clk 0:02:55.4]} 2. c4 {[%clk 0:03:00.1]}
2... e6 {[%clk 0:02:54.5]} 3. d4 {[%clk 0:02:58.9]} 3... Nf6 {[%clk 0:02:54.3]}
4. g3 {[%clk 0:02:59.3]} 4... dxc4 {[%clk 0:02:53.9]} 5. Bg2 {[%clk 0:02:59.7]}
5... Bd7 {[%clk 0:02:53]} 6. Ne5 {[%clk 0:02:58.8]} 6... Bc6 {[%clk 0:02:53.5]}
7. Nxc6 {[%clk 0:02:58.5]} 7... Nxc6 {[%clk 0:02:54.4]} 8. O-O {[%clk
0:02:54.9]} 8... Bd6 {[%clk 0:02:53.7]} 9. e3 {[%clk 0:02:46.8]} 9... O-O {[%clk
0:02:52.3]} 10. Nd2 {[%clk 0:02:46.6]} 10... e5 {[%clk 0:02:49.1]} 11. dxe5
{[%clk 0:02:46.4]} 11... Nxe5 {[%clk 0:02:26.5]} 12. Bxb7 {[%clk 0:02:45.6]}
12... Rb8 {[%clk 0:02:26.5]} 13. Bg2 {[%clk 0:02:45.4]} 13... Bb4 {[%clk
0:02:19.6]} 14. Qc2 {[%clk 0:02:43.4]} 14... Qd3 {[%clk 0:02:16.9]} 15. Qxd3
{[%clk 0:02:26.2]} 15... cxd3 {[%clk 0:02:17.8]} 16. Rd1 {[%clk 0:02:16.8]}
16... Rfd8 {[%clk 0:02:10.8]} 17. h3 {[%clk 0:01:30.6]} 17... c5 {[%clk
0:01:56.7]} 18. f4 {[%clk 0:01:26.8]} 18... Ned7 {[%clk 0:01:17.3]} 19. Nc4
{[%clk 0:01:26.9]} 19... Nb6 {[%clk 0:01:16.5]} 20. Ne5 {[%clk 0:01:19.3]} 20...
d2 {[%clk 0:01:07.9]} 21. a3 {[%clk 0:00:57.7]} 21... dxc1=Q {[%clk 0:01:06.2]}
22. Raxc1 {[%clk 0:00:52.4]} 22... Bd2 {[%clk 0:01:06.6]} 23. Nc6 {[%clk
0:00:45.9]} 23... Bxc1 {[%clk 0:00:58.8]} 24. Rxc1 {[%clk 0:00:42.4]} 24... c4
{[%clk 0:00:57.5]} 25. Bf1 {[%clk 0:00:37]} 25... Nfd5 {[%clk 0:00:50.6]} 26.
Kf2 {[%clk 0:00:31.1]} 26... Re8 {[%clk 0:00:36.5]} 27. Nxb8 {[%clk 0:00:30.8]}
27... Rxb8 {[%clk 0:00:37.4]} 28. e4 {[%clk 0:00:28.7]} 28... Nf6 {[%clk
0:00:36.3]} 29. e5 {[%clk 0:00:28.9]} 29... Ne4+ {[%clk 0:00:33.5]} 30. Kg2
{[%clk 0:00:21]} 30... Nd5 {[%clk 0:00:34.1]} 31. Bxc4 {[%clk 0:00:16]} 31...
Rxb2+ {[%clk 0:00:27.7]} 32. Kf3 {[%clk 0:00:14.8]} 32... Nd2+ {[%clk
0:00:28.3]} 33. Kg4 {[%clk 0:00:13.3]} 33... Nxc4 {[%clk 0:00:27.8]} 34. Rxc4
{[%clk 0:00:13.1]} 34... Ne3+ {[%clk 0:00:28.2]} 0-1

[Event "Late-Titled-Tuesday-Blitz-February-20-2024"]
[Site "Chess.com"]
[Date "2024.02.20"]
[Round "8"]
[White "PacingRope"]
[Black "BilodeauA"]
[Result "0-1"]
[WhiteElo "2915"]
[BlackElo "3040"]
[TimeControl "180+1"]
[EndTime "15:27:31 PST"]
[Termination "BilodeauA won by resignation"]

1. e4 {[%clk 0:03:00.9]} 1... e5 {[%clk 0:02:57.7]} 2. Nf3 {[%clk 0:03:01.3]}
2... Nc6 {[%clk 0:02:58.4]} 3. Bc4 {[%clk 0:03:01.8]} 3... Bc5 {[%clk
0:02:58.3]} 4. c3 {[%clk 0:03:01.7]} 4... Nf6 {[%clk 0:02:58.9]} 5. d4 {[%clk
0:03:02.3]} 5... exd4 {[%clk 0:02:57.5]} 6. b4 {[%clk 0:03:02.9]} 6... Be7
{[%clk 0:02:49.1]} 7. e5 {[%clk 0:02:59.5]} 7... Ne4 {[%clk 0:02:47.9]} 8. b5
{[%clk 0:02:58.8]} 8... Na5 {[%clk 0:02:34.6]} 9. Bd3 {[%clk 0:02:54.3]} 9... d5
{[%clk 0:02:28.8]} 10. exd6 {[%clk 0:02:51]} 10... Nxd6 {[%clk 0:02:28.9]} 11.
cxd4 {[%clk 0:02:51.6]} 11... O-O {[%clk 0:02:26]} 12. O-O {[%clk 0:02:51.8]}
12... b6 {[%clk 0:02:21.4]} 13. Nc3 {[%clk 0:02:50]} 13... Bb7 {[%clk
0:02:21.2]} 14. a4 {[%clk 0:02:50.6]} 14... Bf6 {[%clk 0:02:18.3]} 15. Be3
{[%clk 0:02:50.6]} 15... Nac4 {[%clk 0:02:15.6]} 16. Qe2 {[%clk 0:02:34.6]}
16... Na5 {[%clk 0:01:53.5]} 17. Rad1 {[%clk 0:02:29.4]} 17... Re8 {[%clk
0:01:53]} 18. Rfe1 {[%clk 0:02:27.9]} 18... Qd7 {[%clk 0:01:48.5]} 19. h3 {[%clk
0:02:24.9]} 19... Re7 {[%clk 0:01:46.3]} 20. Ne5 {[%clk 0:02:09.6]} 20... Bxe5
{[%clk 0:01:39.8]} 21. dxe5 {[%clk 0:02:10.5]} 21... Rxe5 {[%clk 0:01:37]} 22.
Qc2 {[%clk 0:02:10.7]} 22... h6 {[%clk 0:01:27.6]} 23. Bf4 {[%clk 0:02:07.5]}
23... Rxe1+ {[%clk 0:01:27.2]} 24. Rxe1 {[%clk 0:02:08.4]} 24... Re8 {[%clk
0:01:26.9]} 25. Rxe8+ {[%clk 0:02:03.6]} 25... Qxe8 {[%clk 0:01:25.8]} 26. Bxd6
{[%clk 0:01:55.5]} 26... cxd6 {[%clk 0:01:25.7]} 27. Ne4 {[%clk 0:01:55.9]}
27... Bxe4 {[%clk 0:01:17.5]} 28. Bxe4 {[%clk 0:01:56.8]} 28... Nb3 {[%clk
0:01:17.7]} 29. Qc6 {[%clk 0:01:46.8]} 29... Qd8 {[%clk 0:00:51.8]} 30. Bd5
{[%clk 0:01:36]} 30... Nc5 {[%clk 0:00:52]} 31. g3 {[%clk 0:01:33]} 31... g6
{[%clk 0:00:49.4]} 32. Kg2 {[%clk 0:01:32.6]} 32... Kg7 {[%clk 0:00:49.6]} 33.
h4 {[%clk 0:01:32.9]} 33... h5 {[%clk 0:00:50.2]} 34. Kg1 {[%clk 0:01:13.1]}
34... Qf6 {[%clk 0:00:48.7]} 35. Qc7 {[%clk 0:01:06.5]} 35... Nd3 {[%clk
0:00:45.4]} 36. Qc2 {[%clk 0:00:51.9]} 36... Qa1+ {[%clk 0:00:45.4]} 37. Kh2
{[%clk 0:00:48.1]} 37... Qd4 {[%clk 0:00:45.9]} 38. Bg2 {[%clk 0:00:37.6]} 38...
Nxf2 {[%clk 0:00:44.2]} 39. Bf3 {[%clk 0:00:36.8]} 39... Nd3 {[%clk 0:00:38.5]}
40. Qd2 {[%clk 0:00:19]} 40... Qb2 {[%clk 0:00:35.3]} 0-1

[Event "Late-Titled-Tuesday-Blitz-February-20-2024"]
[Site "Chess.com"]
[Date "2024.02.20"]
[Round "8"]
[White "AsaHoffmann"]
[Black "VinzentSpitzl"]
[Result "1/2-1/2"]
[WhiteElo "2388"]
[BlackElo "2528"]
[TimeControl "180+1"]
[EndTime "15:27:31 PST"]
[Termination "Game drawn - insufficient material"]

1. d4 {[%clk 0:02:57.1]} 1... Nf6 {[%clk 0:02:58.7]} 2. Bg5 {[%clk 0:02:56.4]}
2... d5 {[%clk 0:02:57.2]} 3. Nd2 {[%clk 0:02:55.5]} 3... Nbd7 {[%clk 0:02:55]}
4. e3 {[%clk 0:02:55.1]} 4... h6 {[%clk 0:02:55.2]} 5. Bh4 {[%clk 0:02:54.9]}
5... e6 {[%clk 0:02:55.6]} 6. f4 {[%clk 0:02:54.8]} 6... Be7 {[%clk 0:02:54.9]}
7. Bd3 {[%clk 0:02:54.7]} 7... b6 {[%clk 0:02:55.1]} 8. Ngf3 {[%clk 0:02:54.5]}
8... Bb7 {[%clk 0:02:55.5]} 9. O-O {[%clk 0:02:54.2]} 9... Ne4 {[%clk
0:02:55.7]} 10. Bxe7 {[%clk 0:02:53.2]} 10... Qxe7 {[%clk 0:02:56.6]} 11. Bxe4
{[%clk 0:02:53.3]} 11... dxe4 {[%clk 0:02:56.8]} 12. Ne5 {[%clk 0:02:53.4]}
12... Nxe5 {[%clk 0:02:49.8]} 13. fxe5 {[%clk 0:02:53.1]} 13... Qg5 {[%clk
0:02:49.5]} 14. Rf4 {[%clk 0:02:51.1]} 14... O-O {[%clk 0:02:42.2]} 15. Qg4
{[%clk 0:02:48.1]} 15... Qxg4 {[%clk 0:02:35.7]} 16. Rxg4 {[%clk 0:02:47.8]}
16... Rad8 {[%clk 0:02:32.2]} 17. c3 {[%clk 0:02:47.1]} 17... a5 {[%clk
0:02:26.4]} 18. Nxe4 {[%clk 0:02:46.7]} 18... Bxe4 {[%clk 0:02:26.3]} 19. Rxe4
{[%clk 0:02:46.4]} 19... g5 {[%clk 0:02:26.7]} 20. h4 {[%clk 0:02:44]} 20... Kg7
{[%clk 0:02:26.4]} 21. hxg5 {[%clk 0:02:41]} 21... hxg5 {[%clk 0:02:26.6]} 22.
Rf1 {[%clk 0:02:40.5]} 22... f5 {[%clk 0:02:24.7]} 23. exf6+ {[%clk 0:02:39.9]}
23... Rxf6 {[%clk 0:02:25.1]} 24. Rxf6 {[%clk 0:02:39.3]} 24... Kxf6 {[%clk
0:02:25.2]} 25. Re5 {[%clk 0:02:39.5]} 25... c6 {[%clk 0:02:17.2]} 26. Kf2
{[%clk 0:02:39]} 26... Rh8 {[%clk 0:02:13.9]} 27. Kg1 {[%clk 0:02:21.6]} 27...
Rh4 {[%clk 0:02:00.2]} 28. b3 {[%clk 0:02:18.9]} 28... c5 {[%clk 0:01:51.3]} 29.
a3 {[%clk 0:02:13.7]} 29... Rh8 {[%clk 0:01:46.7]} 30. b4 {[%clk 0:02:11.2]}
30... cxb4 {[%clk 0:01:37.1]} 31. cxb4 {[%clk 0:02:08.7]} 31... a4 {[%clk
0:01:35.7]} 32. Rb5 {[%clk 0:02:08.1]} 32... Rc8 {[%clk 0:01:31.2]} 33. Rxb6
{[%clk 0:02:05.4]} 33... Rc3 {[%clk 0:01:25.5]} 34. Kf2 {[%clk 0:02:05.2]} 34...
Kf5 {[%clk 0:01:21.5]} 35. g4+ {[%clk 0:01:54.7]} 35... Kxg4 {[%clk 0:01:17.3]}
36. Rxe6 {[%clk 0:01:54.2]} 36... Rxa3 {[%clk 0:01:17.7]} 37. d5 {[%clk
0:01:54.3]} 37... Ra2+ {[%clk 0:01:16.4]} 38. Ke1 {[%clk 0:01:54.1]} 38... a3
{[%clk 0:01:11.3]} 39. Ra6 {[%clk 0:01:53.7]} 39... Kf5 {[%clk 0:01:09]} 40. b5
{[%clk 0:01:49.3]} 40... g4 {[%clk 0:01:04.6]} 41. b6 {[%clk 0:01:48.3]} 41...
g3 {[%clk 0:00:54]} 42. Kf1 {[%clk 0:01:47.4]} 42... Rb2 {[%clk 0:00:34.8]} 43.
Rxa3 {[%clk 0:01:44.3]} 43... Ke4 {[%clk 0:00:30.9]} 44. d6 {[%clk 0:01:40.4]}
44... Rxb6 {[%clk 0:00:28]} 45. Kg2 {[%clk 0:01:36.4]} 45... Rxd6 {[%clk
0:00:26.5]} 46. Kxg3 {[%clk 0:01:35.9]} 46... Rg6+ {[%clk 0:00:25.2]} 47. Kf2
{[%clk 0:01:35.7]} 47... Rf6+ {[%clk 0:00:24.9]} 48. Ke2 {[%clk 0:01:35.5]}
48... Rh6 {[%clk 0:00:24.6]} 49. Ra4+ {[%clk 0:01:35.3]} 49... Ke5 {[%clk
0:00:24.3]} 50. Kd3 {[%clk 0:01:35.1]} 50... Rb6 {[%clk 0:00:22.9]} 51. Ra5+
{[%clk 0:01:34.4]} 51... Ke6 {[%clk 0:00:23.1]} 52. Kd4 {[%clk 0:01:33.1]} 52...
Ke7 {[%clk 0:00:22.9]} 53. e4 {[%clk 0:01:31.7]} 53... Rh6 {[%clk 0:00:22.7]}
54. Rc5 {[%clk 0:01:29.2]} 54... Kd7 {[%clk 0:00:22.3]} 55. Kd5 {[%clk
0:01:28.4]} 55... Ke7 {[%clk 0:00:22.2]} 56. Rc6 {[%clk 0:01:27.5]} 56... Rxc6
{[%clk 0:00:21.2]} 57. Kxc6 {[%clk 0:01:26.8]} 57... Ke6 {[%clk 0:00:21.6]} 58.
Kc5 {[%clk 0:01:26.7]} 58... Ke5 {[%clk 0:00:22]} 59. Kb6 {[%clk 0:01:26.4]}
59... Kxe4 {[%clk 0:00:22.5]} 1/2-1/2

[Event "Late-Titled-Tuesday-Blitz-February-20-2024"]
[Site "Chess.com"]
[Date "2024.02.20"]
[Round "8"]
[White "Abund"]
[Black "Statham_01"]
[Result "0-1"]
[WhiteElo "2772"]
[BlackElo "2601"]
[TimeControl "180+1"]
[EndTime "15:27:38 PST"]
[Termination "Statham_01 won by checkmate"]

1. b3 {[%clk 0:03:00.9]} 1... e5 {[%clk 0:02:55.1]} 2. c4 {[%clk 0:03:01.1]}
2... Nf6 {[%clk 0:02:52.1]} 3. Bb2 {[%clk 0:03:00.7]} 3... Nc6 {[%clk
0:02:50.5]} 4. e3 {[%clk 0:02:57.1]} 4... d5 {[%clk 0:02:39.5]} 5. cxd5 {[%clk
0:02:58]} 5... Nxd5 {[%clk 0:02:38.9]} 6. a3 {[%clk 0:02:56.7]} 6... Be6 {[%clk
0:02:38]} 7. Bb5 {[%clk 0:02:53.2]} 7... Be7 {[%clk 0:02:36.5]} 8. Nf3 {[%clk
0:02:41.8]} 8... Bg4 {[%clk 0:02:13.9]} 9. Bxe5 {[%clk 0:02:26.2]} 9... Bf6
{[%clk 0:02:02.7]} 10. Bxf6 {[%clk 0:02:14.7]} 10... Qxf6 {[%clk 0:02:03.6]} 11.
d4 {[%clk 0:02:13.8]} 11... O-O {[%clk 0:01:47]} 12. O-O {[%clk 0:02:12.9]}
12... Rad8 {[%clk 0:01:46.1]} 13. Be2 {[%clk 0:02:11.5]} 13... Rfe8 {[%clk
0:01:43.6]} 14. Qc2 {[%clk 0:02:05.9]} 14... Bf5 {[%clk 0:01:40.2]} 15. Bd3
{[%clk 0:01:57.4]} 15... Ncb4 {[%clk 0:01:18.1]} 16. axb4 {[%clk 0:01:58.3]}
16... Nxb4 {[%clk 0:01:19]} 17. Qxc7 {[%clk 0:01:53.8]} 17... Bxd3 {[%clk
0:01:06.2]} 18. Rc1 {[%clk 0:01:47.5]} 18... Bf5 {[%clk 0:00:44.9]} 19. Nbd2
{[%clk 0:01:37.6]} 19... Nd3 {[%clk 0:00:43.3]} 20. Rd1 {[%clk 0:01:22.9]} 20...
Qe6 {[%clk 0:00:39]} 21. Nf1 {[%clk 0:01:13.7]} 21... Bg4 {[%clk 0:00:35]} 22.
Qxb7 {[%clk 0:00:54.3]} 22... Rb8 {[%clk 0:00:22.6]} 23. Qxa7 {[%clk 0:00:52.7]}
23... Bxf3 {[%clk 0:00:19.2]} 24. gxf3 {[%clk 0:00:46.3]} 24... Rxb3 {[%clk
0:00:18.9]} 25. Ng3 {[%clk 0:00:39.2]} 25... Nxf2 {[%clk 0:00:14.5]} 26. Kxf2
{[%clk 0:00:23]} 26... Rb2+ {[%clk 0:00:14.4]} 27. Kf1 {[%clk 0:00:15.1]} 27...
Qh3+ {[%clk 0:00:13.3]} 28. Ke1 {[%clk 0:00:12.4]} 28... Rxe3+ {[%clk
0:00:13.1]} 29. Ne2 {[%clk 0:00:12.3]} 29... Rexe2# {[%clk 0:00:13.6]} 0-1

[Event "Late-Titled-Tuesday-Blitz-February-20-2024"]
[Site "Chess.com"]
[Date "2024.02.20"]
[Round "8"]
[White "laskakid"]
[Black "TheMagician"]
[Result "1-0"]
[WhiteElo "2343"]
[BlackElo "2200"]
[TimeControl "180+1"]
[EndTime "15:27:40 PST"]
[Termination "laskakid won on time"]

1. d4 {[%clk 0:03:00.9]} 1... Nf6 {[%clk 0:02:58.5]} 2. Bg5 {[%clk 0:03:00.4]}
2... e6 {[%clk 0:02:52]} 3. e4 {[%clk 0:03:00]} 3... d5 {[%clk 0:02:50.6]} 4. e5
{[%clk 0:02:58.3]} 4... h6 {[%clk 0:02:50.3]} 5. Bh4 {[%clk 0:02:46]} 5... g5
{[%clk 0:02:49.5]} 6. Bg3 {[%clk 0:02:45.6]} 6... Ne4 {[%clk 0:02:49.4]} 7. Bd3
{[%clk 0:02:42.4]} 7... c5 {[%clk 0:02:43.2]} 8. c3 {[%clk 0:02:27.7]} 8... Nxg3
{[%clk 0:02:37.7]} 9. hxg3 {[%clk 0:02:27.4]} 9... Nc6 {[%clk 0:02:37.6]} 10.
Ne2 {[%clk 0:02:19.6]} 10... Qb6 {[%clk 0:02:23.7]} 11. Qd2 {[%clk 0:02:12]}
11... Bd7 {[%clk 0:02:19.1]} 12. dxc5 {[%clk 0:02:04.4]} 12... Bxc5 {[%clk
0:02:16.4]} 13. O-O {[%clk 0:02:04.1]} 13... Nxe5 {[%clk 0:02:14.3]} 14. b4
{[%clk 0:01:58.2]} 14... Bf8 {[%clk 0:02:02]} 15. Re1 {[%clk 0:01:49.4]} 15...
Bg7 {[%clk 0:02:01.6]} 16. Nd4 {[%clk 0:01:46.7]} 16... Nxd3 {[%clk 0:01:48]}
17. Qxd3 {[%clk 0:01:46.7]} 17... O-O {[%clk 0:01:41.5]} 18. Nd2 {[%clk
0:01:43.6]} 18... Rac8 {[%clk 0:01:40.4]} 19. N2f3 {[%clk 0:01:35]} 19... Rc4
{[%clk 0:01:32.3]} 20. Ne5 {[%clk 0:01:28.8]} 20... Rc7 {[%clk 0:01:13.8]} 21.
Re3 {[%clk 0:01:01]} 21... Rfc8 {[%clk 0:00:54.9]} 22. Ne2 {[%clk 0:00:56.3]}
22... Bb5 {[%clk 0:00:39.9]} 23. Qd2 {[%clk 0:00:56.3]} 23... Bxe2 {[%clk
0:00:38]} 24. Qxe2 {[%clk 0:00:54.2]} 24... Rxc3 {[%clk 0:00:30.5]} 25. Rxc3
{[%clk 0:00:53.8]} 25... Rxc3 {[%clk 0:00:29.9]} 26. Re1 {[%clk 0:00:54.5]}
26... Bxe5 {[%clk 0:00:25.6]} 27. Qxe5 {[%clk 0:00:53.9]} 27... Rc2 {[%clk
0:00:25.5]} 28. Qf6 {[%clk 0:00:52.2]} 28... e5 {[%clk 0:00:19.3]} 29. Qf5
{[%clk 0:00:44.2]} 29... Qe6 {[%clk 0:00:14.6]} 30. Qxc2 {[%clk 0:00:43.5]}
30... e4 {[%clk 0:00:09.8]} 31. Rc1 {[%clk 0:00:41.4]} 31... d4 {[%clk 0:00:05]}
32. Qc8+ {[%clk 0:00:40.4]} 32... Kg7 {[%clk 0:00:04.2]} 33. Qxe6 {[%clk
0:00:39.3]} 33... fxe6 {[%clk 0:00:03.5]} 34. Rc4 {[%clk 0:00:37.6]} 34... e5
{[%clk 0:00:01.9]} 35. Kf1 {[%clk 0:00:37.6]} 35... Kf6 {[%clk 0:00:01.9]} 36.
Ke2 {[%clk 0:00:37.7]} 36... Ke6 {[%clk 0:00:02.1]} 37. Rc7 {[%clk 0:00:36.8]}
1-0

[Event "Late-Titled-Tuesday-Blitz-February-20-2024"]
[Site "Chess.com"]
[Date "2024.02.20"]
[Round "8"]
[White "giovannibrandao7"]
[Black "Laico"]
[Result "0-1"]
[WhiteElo "2235"]
[BlackElo "2377"]
[TimeControl "180+1"]
[EndTime "15:27:41 PST"]
[Termination "Laico won on time"]

1. e4 {[%clk 0:02:59.8]} 1... e6 {[%clk 0:02:56.5]} 2. d4 {[%clk 0:02:59.5]}
2... d5 {[%clk 0:02:53.3]} 3. Nd2 {[%clk 0:02:59.8]} 3... Nf6 {[%clk 0:02:46.7]}
4. e5 {[%clk 0:02:59.2]} 4... Nfd7 {[%clk 0:02:46.2]} 5. Bd3 {[%clk 0:02:59.8]}
5... c5 {[%clk 0:02:46.6]} 6. c3 {[%clk 0:03:00.7]} 6... Nc6 {[%clk 0:02:46.9]}
7. Ne2 {[%clk 0:03:01.2]} 7... cxd4 {[%clk 0:02:47.8]} 8. cxd4 {[%clk
0:03:01.9]} 8... f6 {[%clk 0:02:48.5]} 9. exf6 {[%clk 0:03:02.8]} 9... Nxf6
{[%clk 0:02:49.1]} 10. Nf3 {[%clk 0:03:03.4]} 10... Bd6 {[%clk 0:02:49.8]} 11.
O-O {[%clk 0:03:03]} 11... Qc7 {[%clk 0:02:50.2]} 12. Ng3 {[%clk 0:03:03.6]}
12... O-O {[%clk 0:02:50.1]} 13. a3 {[%clk 0:03:04.1]} 13... e5 {[%clk
0:02:50.2]} 14. dxe5 {[%clk 0:03:01.1]} 14... Nxe5 {[%clk 0:02:51.1]} 15. Nxe5
{[%clk 0:03:00.6]} 15... Bxe5 {[%clk 0:02:52]} 16. Qc2 {[%clk 0:02:02]} 16...
Qb6 {[%clk 0:02:43.7]} 17. Rb1 {[%clk 0:01:56.2]} 17... Bd7 {[%clk 0:02:36.1]}
18. Bg5 {[%clk 0:01:41.1]} 18... Rac8 {[%clk 0:02:32.3]} 19. Qe2 {[%clk
0:01:36]} 19... Rce8 {[%clk 0:02:22.1]} 20. Bxf6 {[%clk 0:01:34.2]} 20... Bxf6
{[%clk 0:01:57.3]} 21. Qh5 {[%clk 0:01:33]} 21... g6 {[%clk 0:01:57]} 22. Qxd5+
{[%clk 0:01:28.4]} 22... Be6 {[%clk 0:01:56.9]} 23. Qb5 {[%clk 0:01:27.1]} 23...
Qd4 {[%clk 0:01:47.9]} 24. Rbd1 {[%clk 0:01:02.1]} 24... Qxb2 {[%clk 0:01:39.9]}
25. Qxb2 {[%clk 0:00:57.5]} 25... Bxb2 {[%clk 0:01:40.8]} 26. Rb1 {[%clk
0:00:57.8]} 26... Bxa3 {[%clk 0:01:38.2]} 27. Rxb7 {[%clk 0:00:57.2]} 27... Bc5
{[%clk 0:01:38.2]} 28. Ne4 {[%clk 0:00:50.9]} 28... Bb6 {[%clk 0:01:26]} 29. Bb5
{[%clk 0:00:28.2]} 29... Bd5 {[%clk 0:01:17.1]} 30. Bxe8 {[%clk 0:00:19.7]}
30... Bxb7 {[%clk 0:01:13.7]} 31. Nd6 {[%clk 0:00:19.6]} 31... Ba6 {[%clk
0:01:13.9]} 32. Bb5 {[%clk 0:00:18.4]} 32... Bxb5 {[%clk 0:01:08.6]} 33. Nxb5
{[%clk 0:00:19.3]} 33... Rf5 {[%clk 0:01:07.3]} 34. Nd6 {[%clk 0:00:14.2]} 34...
Rf6 {[%clk 0:01:00.8]} 35. Nc4 {[%clk 0:00:14.2]} 35... Bd4 {[%clk 0:00:54.3]}
36. g3 {[%clk 0:00:13.6]} 36... Rc6 {[%clk 0:00:53]} 37. Nd2 {[%clk 0:00:10.3]}
37... Rc2 {[%clk 0:00:43.7]} 38. Ne4 {[%clk 0:00:03]} 38... a5 {[%clk
0:00:40.1]} 39. Kg2 {[%clk 0:00:02.7]} 39... a4 {[%clk 0:00:40.1]} 40. Kf3
{[%clk 0:00:02.2]} 40... a3 {[%clk 0:00:40]} 0-1

[Event "Late-Titled-Tuesday-Blitz-February-20-2024"]
[Site "Chess.com"]
[Date "2024.02.20"]
[Round "8"]
[White "Bigfish1995"]
[Black "dropstoneDP"]
[Result "1-0"]
[WhiteElo "3166"]
[BlackElo "3004"]
[TimeControl "180+1"]
[EndTime "15:27:47 PST"]
[Termination "Bigfish1995 won by resignation"]

1. e4 {[%clk 0:02:38.5]} 1... e5 {[%clk 0:02:59.4]} 2. Nf3 {[%clk 0:02:36.9]}
2... Nf6 {[%clk 0:02:59]} 3. d4 {[%clk 0:02:37.6]} 3... Nxe4 {[%clk 0:02:58.9]}
4. Nxe5 {[%clk 0:02:37]} 4... d6 {[%clk 0:02:56.9]} 5. Nd3 {[%clk 0:02:35]} 5...
d5 {[%clk 0:02:57.4]} 6. Nf4 {[%clk 0:02:35]} 6... c6 {[%clk 0:02:58]} 7. Bd3
{[%clk 0:02:34.5]} 7... Bd6 {[%clk 0:02:57.3]} 8. O-O {[%clk 0:02:34.3]} 8...
O-O {[%clk 0:02:57.9]} 9. c4 {[%clk 0:02:33.7]} 9... Nf6 {[%clk 0:02:57.1]} 10.
cxd5 {[%clk 0:02:27]} 10... Nxd5 {[%clk 0:02:57]} 11. Nxd5 {[%clk 0:02:22.1]}
11... cxd5 {[%clk 0:02:57.9]} 12. Nc3 {[%clk 0:02:21.8]} 12... Nc6 {[%clk
0:02:56.7]} 13. Be3 {[%clk 0:01:54.2]} 13... Be6 {[%clk 0:02:57.1]} 14. a3
{[%clk 0:01:44.7]} 14... Re8 {[%clk 0:02:56.1]} 15. Rc1 {[%clk 0:01:32.2]} 15...
Rc8 {[%clk 0:02:55.4]} 16. Re1 {[%clk 0:01:23.3]} 16... a6 {[%clk 0:02:54.3]}
17. Qf3 {[%clk 0:01:18.3]} 17... Qh4 {[%clk 0:02:10.8]} 18. g3 {[%clk
0:01:16.9]} 18... Nxd4 {[%clk 0:02:11.4]} 19. Qd1 {[%clk 0:01:16.5]} 19... Bg4
{[%clk 0:01:05.9]} 20. Bxd4 {[%clk 0:00:50.2]} 20... Bxd1 {[%clk 0:01:03.8]} 21.
Rxe8+ {[%clk 0:00:49.9]} 21... Rxe8 {[%clk 0:01:04.2]} 22. gxh4 {[%clk
0:00:50.3]} 22... Bf3 {[%clk 0:00:54.9]} 23. h3 {[%clk 0:00:47.4]} 23... h5
{[%clk 0:00:42.9]} 24. Kf1 {[%clk 0:00:40.1]} 24... b5 {[%clk 0:00:38.5]} 25.
Be2 {[%clk 0:00:38.6]} 25... Bxe2+ {[%clk 0:00:37.5]} 26. Nxe2 {[%clk
0:00:39.5]} 26... Re4 {[%clk 0:00:37.8]} 27. Rc6 {[%clk 0:00:37.5]} 27... Be7
{[%clk 0:00:37]} 28. f3 {[%clk 0:00:32.7]} 28... Rxh4 {[%clk 0:00:36.4]} 29. Kg2
{[%clk 0:00:33.2]} 29... a5 {[%clk 0:00:33.8]} 30. Rb6 {[%clk 0:00:29.8]} 30...
g5 {[%clk 0:00:20.7]} 31. Rxb5 {[%clk 0:00:22.6]} 31... g4 {[%clk 0:00:21.2]}
32. Rb8+ {[%clk 0:00:22.4]} 32... Kh7 {[%clk 0:00:21.1]} 33. hxg4 {[%clk
0:00:19.7]} 33... hxg4 {[%clk 0:00:21.2]} 34. Rh8+ {[%clk 0:00:19.8]} 34... Kg6
{[%clk 0:00:20.6]} 35. Rxh4 {[%clk 0:00:19.9]} 35... gxf3+ {[%clk 0:00:21.2]}
36. Kxf3 {[%clk 0:00:20.3]} 36... Bxh4 {[%clk 0:00:22.1]} 37. Nf4+ {[%clk
0:00:20.6]} 37... Kf5 {[%clk 0:00:22.4]} 38. Nxd5 {[%clk 0:00:21.2]} 38... Ke6
{[%clk 0:00:22.3]} 39. Ne3 {[%clk 0:00:20.2]} 39... f5 {[%clk 0:00:22]} 40. a4
{[%clk 0:00:20]} 40... Bg5 {[%clk 0:00:21]} 41. b3 {[%clk 0:00:19.6]} 41... Bh6
{[%clk 0:00:20.8]} 42. Bc3 {[%clk 0:00:19]} 1-0